fUST/lending_fUST_20251218
["ID","MTS","AMOUNT","RATE_DAILY","PERIOD"]
[398952440,1766017847601,-1000.0,0.00043189,120]
[398952442,1766017847609,-192.19972463,0.00043189,31]
[398952444,1766017847618,-500.0,0.00043189,120]
[398952446,1766017847627,-561.10323551,0.00043321,2]
[398952447,1766017847636,-8523.8955605,0.00043452,2]
[398952449,1766017847646,-1000.0,0.00043463,120]
[398952451,1766017847655,-500.0,0.00043463,120]
[398952453,1766017847664,-200.0,0.00043598,2]
[398952455,1766017847672,-1000.0,0.00043737,120]
[398952457,1766017847681,-163.877474,0.00043737,120]
[398952459,1766017847690,-251.17,0.000438,14]
[398952461,1766017847699,-2000.0,0.0004401,15]
[398952463,1766017847707,-1000.0,0.00044011,120]
[398952465,1766017847716,-200.0,0.00044146,2]
[398952467,1766017847725,-1000.0,0.00044285,120]
[398952468,1766017847734,-223.59,0.000443,30]
[398952470,1766017847743,-1024.92309304,0.00044559,120]
[398952472,1766017847755,-200.0,0.00044694,2]
[398952474,1766017847764,-352.35914027,0.00044994,2]
[398952476,1766017847773,-1452.37534543,0.00045186,2]
[398952478,1766017847781,-200.0,0.00045242,2]
[398952480,1766017847790,-4250.09,0.000462,2]
[398952482,1766017847799,-2409.460429,0.0004706,2]
[398952484,1766017847808,-151.0,0.0004706,120]
[398952486,1766017847817,-151.0,0.0004706,120]
[398952488,1766017847826,-151.0,0.0004706,120]
[398952490,1766017847835,-151.0,0.0004706,120]
[398952492,1766017847844,-151.0,0.0004706,120]
[398952494,1766017847852,-561.10323551,0.00047113,2]
[398952496,1766017847862,-774.0,0.000473,30]
[398952498,1766017847871,-8523.8955605,0.0004756,2]
[398952500,1766017847880,-228.92375251,0.00048384,2]
[398952502,1766017847889,-537.6232914,0.00048781,2]
[398952503,1766017847898,-200.0,0.00048949,120]
[398952505,1766017847907,-256.30153155,0.00049855,3]
[398952507,1766017847916,-950.14307968,0.0004999,30]
[398952510,1766017847928,-438.32801206,0.0004999,30]
[398953816,1766018811123,-293.17589798,0.00013273,2]
[398953839,1766019031530,-500.0,0.00013273,2]
[398953840,1766019031541,-500.0,0.00013273,2]
[398953841,1766019031550,-2.31568725,0.00013273,2]
[398953842,1766019031584,-147.68431275,0.00013273,2]
[398953843,1766019031593,-608.0,0.00013273,2]
[398953844,1766019031601,-249.38451792,0.000134,2]
[398953850,1766019037690,-3194.01786302,0.000134,2]
[398953851,1766019037700,-160.0,0.000134,2]
[398953852,1766019037709,-300.0,0.00013697,2]
[398953853,1766019037718,-262.883015,0.00013699,2]
[398953854,1766019037727,-500.0,0.00013699,2]
[398953855,1766019037736,-500.0,0.00013699,2]
[398953856,1766019037744,-1000.0,0.00013821,2]
[398953857,1766019037753,-1000.0,0.00013821,2]
[398953858,1766019037762,-500.0,0.00014246,2]
[398953859,1766019037771,-500.0,0.00014246,2]
[398953860,1766019037779,-500.0,0.00014246,2]
[398953861,1766019037788,-289.62007395,0.00014247,2]
[398953862,1766019037796,-263.15370605,0.00014247,2]
[398953863,1766019037805,-500.0,0.00014364,2]
[398953864,1766019037814,-500.0,0.00014364,2]
[398953865,1766019037823,-500.0,0.00014364,2]
[398953866,1766019037831,-500.0,0.00014364,2]
[398953867,1766019037840,-500.0,0.00014364,2]
[398953868,1766019037849,-559.0034858,0.00014364,2]
[398953869,1766019037857,-1500.0,0.00014368,2]
[398953870,1766019037866,-706.82410202,0.00014368,2]
[398953871,1766019037874,-157.84495969,0.00014916,2]
[398953872,1766019037883,-184.32996817,0.00015273,2]
[398953873,1766019037892,-266.184653,0.00015674,2]
[398953874,1766019037901,-262.883015,0.00020187,2]
[398953875,1766019037910,-500.0,0.00021498,2]
[398953876,1766019037919,-500.0,0.00021498,2]
[398953877,1766019037928,-500.0,0.00021498,2]
[398953879,1766019037936,-3143.37931964,0.00023346,2]
[398953880,1766019037945,-435.09781227,0.00023445,2]
[398953881,1766019037954,-778.0016,0.00023446,2]
[398953883,1766019037963,-427.86792639,0.00023446,2]
[398953885,1766019037972,-256.20790074,0.00023446,2]
[398953887,1766019037982,-500.0,0.00023446,2]
[398953889,1766019037991,-500.0,0.00023446,2]
[398953891,1766019038000,-778.0016,0.00023446,2]
[398953893,1766019038009,-249.94293236,0.00023446,2]
[398953895,1766019038021,-322.24925186,0.00023446,2]
[398953897,1766019038031,-205.80941578,0.00023446,2]
[398953899,1766019038041,-500.0,0.00023446,2]
[398953901,1766019038050,-778.0016,0.00023446,2]
[398953903,1766019038059,-778.0016,0.00023446,2]
[398953905,1766019038068,-178.88250959,0.00023446,2]
[398953907,1766019038077,-778.0016,0.00023446,2]
[398953909,1766019038086,-174.58034255,0.00023446,2]
[398953911,1766019038097,-603.42125745,0.00023446,2]
[398953913,1766019038106,-320.01047046,0.00023446,2]
[398954105,1766019039849,-457.99112954,0.00023446,2]
[398954107,1766019039859,-778.0016,0.00023446,2]
[398954109,1766019039868,-70.51092663,0.00023446,2]
[398954386,1766019042792,-429.48907337,0.00023446,2]
[398954388,1766019042802,-778.0016,0.00023446,2]
[398954389,1766019042812,-778.0016,0.00023446,2]
[398954391,1766019042822,-778.0016,0.00023446,2]
[398954394,1766019042832,-500.0,0.00023446,2]
[398954396,1766019042843,-778.0016,0.00023446,2]
[398954397,1766019042853,-778.0016,0.00023446,2]
[398954400,1766019042863,-196.17666168,0.00023446,2]
[398954402,1766019042875,-303.82333832,0.00023446,2]
[398954404,1766019042884,-778.0016,0.00023446,2]
[398954406,1766019042893,-778.0016,0.00023446,2]
[398954420,1766019042902,-500.0,0.00023446,2]
[398954423,1766019043011,-778.0016,0.00023446,2]
[398954425,1766019043020,-778.0016,0.00023446,2]
[398954427,1766019043030,-778.0016,0.00023446,2]
[398954429,1766019043039,-500.0,0.00023446,2]
[398954431,1766019043048,-778.0016,0.00023446,2]
[398954433,1766019043057,-778.0016,0.00023446,2]
[398954435,1766019043066,-778.0016,0.00023446,2]
[398954436,1766019043075,-604.28772915,0.00023446,2]
[398954438,1766019043084,-778.0016,0.00023446,2]
[398954440,1766019043095,-778.0016,0.00023446,2]
[398954442,1766019043104,-778.0016,0.00023446,2]
[398954444,1766019043114,-778.0016,0.00023446,2]
[398954446,1766019043124,-778.0016,0.00023446,2]
[398954448,1766019043133,-778.0016,0.00023446,2]
[398954450,1766019043143,-778.0016,0.00023446,2]
[398954452,1766019043152,-778.0016,0.00023446,2]
[398954454,1766019043162,-778.0016,0.00023446,2]
[398954456,1766019043172,-778.0016,0.00023446,2]
[398954458,1766019043182,-778.0016,0.00023446,2]
[398954460,1766019043192,-778.0016,0.00023446,2]
[398954462,1766019043202,-778.0016,0.00023446,2]
[398954464,1766019043211,-778.0016,0.00023446,2]
[398954466,1766019043221,-778.0016,0.00023446,2]
[398954468,1766019043231,-778.0016,0.00023446,2]
[398954470,1766019043240,-778.0016,0.00023446,2]
[398954472,1766019043250,-778.0016,0.00023446,2]
[398954474,1766019043259,-778.0016,0.00023446,2]
[398954476,1766019043269,-778.0016,0.00023446,2]
[398954478,1766019043278,-778.0016,0.00023446,2]
[398954480,1766019043287,-778.0016,0.00023446,2]
[398954482,1766019043297,-778.0016,0.00023446,2]
[398954484,1766019043306,-778.0016,0.00023446,2]
[398954486,1766019043315,-778.0016,0.00023446,2]
[398954488,1766019043325,-778.0016,0.00023446,2]
[398954490,1766019043335,-89.86453253,0.00023446,2]
[398954538,1766019043810,-0.44666548,0.00023446,2]
[398954540,1766019043821,-687.69040199,0.00023446,2]
[398954542,1766019043831,-262.30959801,0.00023446,2]
[398954747,1766019045944,-515.69200199,0.00023446,2]
[398954749,1766019045953,-358.8909356,0.00023446,2]
[398955657,1766020244119,-1000.0,0.00022492,30]
[398955658,1766020244129,-769.0,0.000225,2]
[398955659,1766020244138,-1281.86,0.000225,2]
[398955660,1766020244147,-2750.45690465,0.00023337,2]
[398955661,1766020244156,-159.0,0.000234,3]
[398955662,1766020244165,-300.0,0.00023436,2]
[398955663,1766020244174,-500.0,0.00023436,2]
[398955664,1766020244183,-400.47641435,0.00023436,2]
[398955665,1766020244192,-500.0,0.00023436,2]
[398955666,1766020244201,-500.0,0.00023436,2]
[398955667,1766020244210,-500.0,0.00023436,2]
[398955668,1766020244219,-500.0,0.00023436,2]
[398955669,1766020244229,-500.0,0.00023436,2]
[398955670,1766020244239,-500.0,0.00023436,2]
[398955671,1766020244250,-500.0,0.00023436,2]
[398955672,1766020244259,-500.0,0.00023436,2]
[398955673,1766020244268,-465.69566498,0.00023436,2]
[398955674,1766020244277,-500.0,0.00023436,2]
[398955675,1766020244286,-500.0,0.00023436,2]
[398955676,1766020244296,-500.0,0.00023436,2]
[398955677,1766020244306,-500.0,0.00023436,2]
[398955678,1766020244315,-500.0,0.00023436,2]
[398955679,1766020244324,-500.0,0.00023436,2]
[398955680,1766020244333,-500.0,0.00023436,2]
[398955681,1766020244343,-500.0,0.00023436,2]
[398955682,1766020244352,-500.0,0.00023436,2]
[398955683,1766020244361,-500.0,0.00023436,2]
[398955684,1766020244370,-500.0,0.00023436,2]
[398955685,1766020244380,-500.0,0.00023436,2]
[398955686,1766020244389,-500.0,0.00023436,2]
[398955687,1766020244398,-500.0,0.00023436,2]
[398955688,1766020244407,-500.0,0.00023436,2]
[398955689,1766020244415,-500.0,0.00023436,2]
[398955690,1766020244424,-500.0,0.00023436,2]
[398955691,1766020244433,-500.0,0.00023436,2]
[398955692,1766020244442,-500.0,0.00023436,2]
[398955693,1766020244451,-500.0,0.00023436,2]
[398955694,1766020244460,-500.0,0.00023436,2]
[398955695,1766020244470,-500.0,0.00023436,2]
[398955696,1766020244480,-500.0,0.00023436,2]
[398955697,1766020244490,-500.0,0.00023436,2]
[398955698,1766020244499,-500.0,0.00023436,2]
[398955699,1766020244509,-500.0,0.00023436,2]
[398955700,1766020244518,-500.0,0.00023436,2]
[398955701,1766020244528,-500.0,0.00023436,2]
[398955702,1766020244538,-500.0,0.00023436,2]
[398955703,1766020244547,-500.0,0.00023436,2]
[398955704,1766020244557,-500.0,0.00023436,2]
[398955705,1766020244566,-500.0,0.00023436,2]
[398955706,1766020244576,-500.0,0.00023436,2]
[398955707,1766020244586,-500.0,0.00023436,2]
[398955708,1766020244595,-500.0,0.00023436,2]
[398955709,1766020244605,-500.0,0.00023436,2]
[398955710,1766020244615,-500.0,0.00023436,2]
[398955711,1766020244624,-500.0,0.00023436,2]
[398955712,1766020244635,-500.0,0.00023436,2]
[398955713,1766020244644,-500.0,0.00023436,2]
[398955714,1766020244654,-500.0,0.00023436,2]
[398955715,1766020244663,-500.0,0.00023436,2]
[398955716,1766020244673,-187.07015797,0.00023436,2]
[398955717,1766020244682,-500.0,0.00023436,2]
[398955718,1766020244691,-500.0,0.00023436,2]
[398955719,1766020244701,-500.0,0.00023436,2]
[398955720,1766020244710,-500.0,0.00023436,2]
[398955721,1766020244719,-500.0,0.00023436,2]
[398955722,1766020244729,-500.0,0.00023436,2]
[398955723,1766020244738,-500.0,0.00023436,2]
[398955724,1766020244747,-500.0,0.00023436,2]
[398955725,1766020244757,-500.0,0.00023441,2]
[398955726,1766020244766,-500.0,0.00023441,2]
[398955727,1766020244775,-500.0,0.00023441,2]
[398955728,1766020244788,-500.0,0.00023441,2]
[398955729,1766020244798,-500.0,0.00023445,2]
[398955730,1766020244807,-500.0,0.00023445,2]
[398955731,1766020244816,-3323.1529115,0.00023446,2]
[398955732,1766020244826,-266.184653,0.00023511,2]
[398955733,1766020244835,-629.89626879,0.0002355,2]
[398955734,1766020244844,-500.0,0.0002355,2]
[398955735,1766020244854,-500.0,0.0002355,2]
[398955736,1766020244863,-360.151555,0.0002355,2]
[398955737,1766020244872,-21093.0388148,0.00023551,2]
[398955738,1766020244881,-160.0,0.000236,3]
[398955739,1766020244891,-1375.13,0.00024657,2]
[398955740,1766020244901,-1375.13,0.00024657,2]
[398955741,1766020244912,-1375.13,0.00024657,2]
[398955742,1766020244923,-380.0,0.00024658,2]
[398955743,1766020244932,-262.883015,0.00026676,2]
[398955744,1766020244941,-1375.13,0.00027396,2]
[398955745,1766020244950,-159.0,0.000274,7]
[398955746,1766020244960,-159.0,0.000274,7]
[398955747,1766020244970,-741.4956413,0.00027619,2]
[398955748,1766020244982,-304.56846859,0.00028548,2]
[398955749,1766020244990,-165.4500412,0.0002855,2]
[398955750,1766020244999,-160.0,0.000296,30]
[398955751,1766020245009,-160.0,0.000296,30]
[398955752,1766020245019,-160.0,0.000296,45]
[398955753,1766020245028,-160.0,0.000296,45]
[398955754,1766020245037,-260.0,0.000296,2]
[398955755,1766020245047,-500.0,0.00031036,30]
[398955756,1766020245056,-170.579,0.00031037,28]
[398955757,1766020245066,-160.0,0.000311,28]
[398955758,1766020245075,-2000.0,0.00032417,10]
[398955759,1766020245085,-2000.0,0.00032426,10]
[398955760,1766020245094,-2000.0,0.00032435,10]
[398955761,1766020245104,-2000.0,0.00032443,10]
[398955762,1766020245114,-2000.0,0.00032452,10]
[398955763,1766020245123,-2000.0,0.00032461,10]
[398955764,1766020245132,-151.0,0.00032461,31]
[398955765,1766020245141,-151.0,0.00032461,31]
[398955766,1766020245150,-151.0,0.00032461,31]
[398955767,1766020245159,-151.0,0.00032461,31]
[398955768,1766020245169,-151.0,0.00032461,31]
[398955769,1766020245178,-151.0,0.00032461,31]
[398955770,1766020245187,-151.0,0.00032461,31]
[398955771,1766020245196,-151.0,0.00032461,31]
[398955772,1766020245205,-151.0,0.00032461,31]
[398955773,1766020245214,-151.0,0.00032461,31]
[398955774,1766020245223,-151.0,0.00032461,31]
[398955775,1766020245232,-151.0,0.00032461,31]
[398955776,1766020245241,-151.0,0.00032461,31]
[398955777,1766020245250,-151.0,0.00032461,31]
[398955778,1766020245259,-359.14852,0.00032461,31]
[398955779,1766020245268,-151.0,0.00032461,31]
[398955780,1766020245278,-166.274112,0.00032461,31]
[398955781,1766020245287,-359.14852,0.00032461,31]
[398955782,1766020245296,-151.0,0.00032461,31]
[398955783,1766020245305,-359.14852,0.00032461,31]
[398955784,1766020245315,-151.0,0.00032461,31]
[398955785,1766020245323,-359.14852,0.00032461,31]
[398955786,1766020245333,-151.0,0.00032461,31]
[398955787,1766020245342,-151.0,0.00032461,31]
[398955788,1766020245351,-151.0,0.00032461,31]
[398955789,1766020245363,-151.0,0.00032461,31]
[398955790,1766020245373,-151.0,0.00032461,31]
[398955791,1766020245383,-167.805189,0.00032461,31]
[398955792,1766020245392,-167.805189,0.00032461,31]
[398955793,1766020245403,-167.805189,0.00032461,31]
[398955794,1766020245413,-167.805189,0.00032461,31]
[398955795,1766020245422,-151.0,0.00032461,31]
[398955796,1766020245432,-151.0,0.00032461,31]
[398955797,1766020245441,-151.0,0.00032461,31]
[398955798,1766020245451,-151.0,0.00032461,31]
[398955800,1766020245460,-151.0,0.00032461,31]
[398955802,1766020245470,-151.0,0.00032461,31]
[398955803,1766020245480,-151.0,0.00032461,31]
[398955804,1766020245489,-151.0,0.00032461,31]
[398955805,1766020245587,-185.591029,0.00032461,31]
[398955806,1766020245598,-185.591029,0.00032461,31]
[398955807,1766020245607,-185.591029,0.00032461,31]
[398955808,1766020245617,-185.591029,0.00032461,31]
[398955809,1766020245626,-151.0,0.00032461,31]
[398955810,1766020245638,-151.0,0.00032461,31]
[398955811,1766020245648,-151.0,0.00032461,31]
[398955812,1766020245657,-151.0,0.00032461,31]
[398955813,1766020245667,-151.0,0.00032461,31]
[398955814,1766020245677,-151.0,0.00032461,31]
[398955815,1766020245687,-151.0,0.00032461,31]
[398955816,1766020245696,-250.645343,0.00032461,31]
[398955817,1766020245706,-151.0,0.00032461,31]
[398955818,1766020245715,-151.0,0.00032461,31]
[398955819,1766020245725,-1375.13,0.00032469,2]
[398955820,1766020245735,-2000.0,0.0003247,10]
[398955821,1766020245744,-2000.0,0.00032479,10]
[398955822,1766020245754,-151.0,0.00032479,31]
[398955823,1766020245764,-151.0,0.00032487,31]
[398955824,1766020245773,-151.0,0.00032487,31]
[398955825,1766020245783,-151.0,0.00032487,30]
[398955826,1766020245792,-2000.0,0.00032487,10]
[398955827,1766020245801,-2000.0,0.00032496,10]
[398955828,1766020245811,-150.71,0.000325,7]
[398955829,1766020245821,-2000.0,0.00032505,10]
[398955830,1766020245830,-2000.0,0.00032514,10]
[398955831,1766020245840,-2000.0,0.00032523,10]
[398955832,1766020245849,-2000.0,0.00032531,10]
[398955833,1766020245859,-1375.13,0.00032539,2]
[398955834,1766020245868,-2000.0,0.0003254,10]
[398955835,1766020245877,-2000.0,0.00032549,10]
[398955836,1766020245888,-151.0,0.00032549,31]
[398955837,1766020245897,-151.0,0.00032549,31]
[398955838,1766020245906,-151.0,0.00032549,31]
[398955839,1766020245915,-151.0,0.00032549,31]
[398955840,1766020245924,-185.591029,0.00032549,31]
[398955841,1766020245933,-185.591029,0.00032549,31]
[398955842,1766020245942,-185.591029,0.00032549,31]
[398955843,1766020245951,-185.591029,0.00032549,31]
[398955844,1766020245960,-151.151734,0.00032549,31]
[398955845,1766020245969,-151.0,0.00032549,31]
[398955846,1766020245981,-151.0,0.00032549,31]
[398955847,1766020245990,-151.0,0.00032549,31]
[398955848,1766020245999,-151.0,0.00032549,31]
[398955849,1766020246008,-151.0,0.00032549,31]
[398955850,1766020246018,-151.0,0.00032549,31]
[398955851,1766020246027,-151.0,0.00032549,31]
[398955852,1766020246037,-224.44129422,0.00032554,2]
[398955853,1766020246047,-2000.0,0.00032558,10]
[398955854,1766020246055,-151.000001,0.00032558,31]
[398955855,1766020246065,-151.0,0.00032558,31]
[398955856,1766020246074,-151.0,0.00032558,31]
[398955857,1766020246082,-151.0,0.00032558,31]
[398955858,1766020246091,-151.0,0.00032558,31]
[398955859,1766020246100,-151.0,0.00032558,31]
[398955860,1766020246110,-151.0,0.00032558,31]
[398955861,1766020246118,-151.0,0.00032558,31]
[398955862,1766020246127,-151.0,0.00032558,31]
[398955863,1766020246136,-151.0,0.00032558,31]
[398955864,1766020246145,-151.0,0.00032558,31]
[398955865,1766020246154,-151.0,0.00032558,31]
[398955866,1766020246164,-151.0,0.00032558,31]
[398955867,1766020246174,-359.14852,0.00032558,31]
[398955868,1766020246184,-151.0,0.00032558,31]
[398955869,1766020246194,-359.14852,0.00032558,31]
[398955870,1766020246203,-359.14852,0.00032558,31]
[398955871,1766020246213,-359.14852,0.00032558,31]
[398955872,1766020246222,-151.0,0.00032558,31]
[398955873,1766020246231,-254.252914,0.00032558,31]
[398955874,1766020246241,-167.805189,0.00032558,31]
[398955875,1766020246251,-167.805189,0.00032558,31]
[398955876,1766020246260,-167.805189,0.00032558,31]
[398955877,1766020246271,-167.805189,0.00032558,31]
[398955878,1766020246281,-151.0,0.00032558,31]
[398955879,1766020246290,-151.0,0.00032558,31]
[398955880,1766020246300,-2000.0,0.00032567,10]
[398955881,1766020246309,-2000.0,0.00032575,10]
[398955882,1766020246318,-151.0,0.00032584,31]
[398955883,1766020246326,-151.0,0.00032584,31]
[398955884,1766020246336,-151.935492,0.00032584,30]
[398955885,1766020246345,-151.0,0.00032584,31]
[398955886,1766020246354,-2000.0,0.00032584,10]
[398955887,1766020246363,-2000.0,0.00032593,10]
[398955888,1766020246373,-1375.13,0.00032601,2]
[398955889,1766020246382,-2000.0,0.00032602,10]
[398955890,1766020246391,-2000.0,0.00032611,10]
[398955891,1766020246400,-2000.0,0.00032619,10]
[398955892,1766020246408,-151.0,0.00032628,31]
[398955893,1766020246418,-151.0,0.00032628,31]
[398955894,1766020246427,-151.0,0.00032628,31]
[398955895,1766020246436,-151.0,0.00032628,31]
[398955896,1766020246446,-185.591029,0.00032628,31]
[398955897,1766020246455,-185.591029,0.00032628,31]
[398955898,1766020246464,-185.591029,0.00032628,31]
[398955899,1766020246474,-185.591029,0.00032628,31]
[398955900,1766020246483,-152.579751,0.00032628,31]
[398955901,1766020246492,-151.0,0.00032628,31]
[398955902,1766020246502,-151.0,0.00032628,31]
[398955903,1766020246511,-151.0,0.00032628,31]
[398955904,1766020246520,-151.0,0.00032628,31]
[398955905,1766020246529,-151.0,0.00032628,31]
[398955906,1766020246538,-2000.0,0.00032628,10]
[398955907,1766020246548,-167.805189,0.00032636,31]
[398955908,1766020246557,-167.805189,0.00032636,31]
[398955909,1766020246567,-167.805189,0.00032636,31]
[398955910,1766020246576,-167.805189,0.00032636,31]
[398955911,1766020246586,-151.0,0.00032636,31]
[398955912,1766020246596,-281.222392,0.00032636,31]
[398955913,1766020246605,-2000.0,0.00032637,10]
[398955914,1766020246615,-2000.0,0.00032646,10]
[398955915,1766020246624,-151.0,0.00032654,31]
[398955916,1766020246634,-151.0,0.00032654,31]
[398955917,1766020246643,-151.0,0.00032654,31]
[398955918,1766020246652,-151.0,0.00032654,31]
[398955919,1766020246662,-359.14852,0.00032654,31]
[398955920,1766020246671,-359.14852,0.00032654,31]
[398955921,1766020246680,-359.14852,0.00032654,31]
[398955922,1766020246690,-359.14852,0.00032654,31]
[398955923,1766020246699,-1375.13,0.00032654,2]
[398955924,1766020246709,-2000.0,0.00032655,10]
[398955925,1766020246718,-151.0,0.00032655,31]
[398955926,1766020246728,-151.0,0.00032655,31]
[398955927,1766020246737,-151.0,0.00032655,31]
[398955928,1766020246747,-151.0,0.00032655,31]
[398955929,1766020246761,-2000.0,0.00032663,10]
[398955930,1766020246770,-151.0,0.00032672,31]
[398955931,1766020246780,-2000.0,0.00032672,10]
[398955932,1766020246789,-2000.0,0.00032681,10]
[398955933,1766020246799,-151.0,0.00032681,31]
[398955934,1766020246807,-151.0,0.00032681,31]
[398955935,1766020246816,-2000.0,0.0003269,10]
[398955936,1766020246826,-2000.0,0.00032699,10]
[398955937,1766020246835,-2000.0,0.00032707,10]
[398955938,1766020246844,-2000.0,0.00032716,10]
[398955939,1766020246854,-2000.0,0.00032725,10]
[398955940,1766020246863,-167.805189,0.00032725,31]
[398955941,1766020246872,-167.805189,0.00032725,31]
[398955942,1766020246885,-167.805189,0.00032725,31]
[398955943,1766020246894,-167.805189,0.00032725,31]
[398955944,1766020246904,-151.0,0.00032725,31]
[398955945,1766020246914,-151.0,0.00032725,31]
[398955946,1766020246923,-151.0,0.00032725,31]
[398955947,1766020246932,-151.0,0.00032725,31]
[398955948,1766020246942,-185.591029,0.00032725,31]
[398955949,1766020246951,-185.591029,0.00032725,31]
[398955950,1766020246960,-185.591029,0.00032725,31]
[398955951,1766020246970,-185.591029,0.00032725,31]
[398955952,1766020246982,-151.0,0.00032725,31]
[398955953,1766020246991,-151.0,0.00032725,31]
[398955954,1766020247001,-151.0,0.00032725,31]
[398955955,1766020247010,-151.0,0.00032725,31]
[398955956,1766020247020,-151.0,0.00032725,31]
[398955957,1766020247029,-1375.13,0.00032733,2]
[398955958,1766020247038,-2000.0,0.00032734,10]
[398955959,1766020247048,-151.0,0.00032742,31]
[398955960,1766020247057,-193.07793875,0.00032742,31]
[398955961,1766020247066,-223.144552,0.00032742,31]
[398955962,1766020247075,-359.14852,0.00032742,31]
[398955963,1766020247084,-359.14852,0.00032742,31]
[398955964,1766020247093,-359.14852,0.00032742,31]
[398955965,1766020247102,-359.14852,0.00032742,31]
[398955966,1766020247111,-2000.0,0.00032743,10]
[398955967,1766020247120,-2000.0,0.00032751,10]
[398955968,1766020247129,-151.0,0.00032752,31]
[398955969,1766020247139,-151.0,0.00032752,31]
[398955970,1766020247148,-151.0,0.00032752,31]
[398955971,1766020247158,-158.7977144,0.00032752,31]
[398955972,1766020247167,-2000.0,0.0003276,10]
[398955973,1766020247177,-2000.0,0.00032769,10]
[398955974,1766020247186,-160.099036,0.00032769,31]
[398955975,1766020247196,-2000.0,0.00032778,10]
[398955976,1766020247205,-151.0,0.00032778,31]
[398955977,1766020247215,-151.0,0.00032778,31]
[398955978,1766020247225,-2000.0,0.00032787,10]
[398955979,1766020247234,-1375.13,0.00032794,2]
[398955980,1766020247244,-2000.0,0.00032795,10]
[398955981,1766020247253,-151.0,0.00032804,31]
[398955982,1766020247262,-151.0,0.00032804,31]
[398955983,1766020247272,-185.591029,0.00032804,31]
[398955984,1766020247281,-185.591029,0.00032804,31]
[398955985,1766020247291,-185.591029,0.00032804,31]
[398955986,1766020247300,-185.591021,0.00032804,31]
[398955987,1766020247310,-151.0,0.00032804,31]
[398955988,1766020247319,-151.0,0.00032804,31]
[398955989,1766020247329,-2000.0,0.00032804,10]
[398955990,1766020247339,-2000.0,0.00032813,10]
[398955991,1766020247348,-167.805189,0.00032813,31]
[398955992,1766020247357,-167.805189,0.00032813,31]
[398955993,1766020247367,-167.805189,0.00032813,31]
[398955994,1766020247376,-167.805191,0.00032813,31]
[398955995,1766020247386,-151.0,0.00032813,31]
[398955996,1766020247395,-151.0,0.00032813,31]
[398955997,1766020247405,-152.395835,0.00032813,31]
[398955998,1766020247414,-2000.0,0.00032822,10]
[398955999,1766020247423,-2000.0,0.00032831,10]
[398956000,1766020247432,-280.0,0.00032831,31]
[398956001,1766020247442,-359.14852,0.00032831,31]
[398956002,1766020247451,-359.14852,0.00032831,31]
[398956003,1766020247460,-359.14852,0.00032831,31]
[398956004,1766020247469,-231.12337763,0.00032831,31]
[398956006,1766020247539,-128.02514637,0.00032831,31]
[398956007,1766020247549,-2000.0,0.00032839,10]
[398956008,1766020247558,-151.0,0.00032848,31]
[398956009,1766020247567,-151.0,0.00032848,31]
[398956010,1766020247577,-151.0,0.00032848,31]
[398956011,1766020247586,-2000.0,0.00032848,10]
[398956012,1766020247596,-2000.0,0.00032857,10]
[398956013,1766020247605,-1375.13,0.00032865,2]